{"text_format":"1","workbook":"xlsx","n_sheets":2,"sheets":["Pracownik","Pracodawca"],"not_rendered":{"charts":0,"images":48,"macros":1,"external_links":1,"defined_names":3,"comments":0,"pivot_tables":0},"unopened":[],"bounds":{"document_bytes":16777216,"sheet_cells":100000,"rows_first":2000,"rows_last":500,"rows_between":2000,"halvings":0,"cell_chars":16384,"cell_head_chars":4096},"cells_cut":0,"cells_raw":0,"read":"whole","date_system":"1900"}

{"sheet":"Pracownik","index":0,"n_rows":127,"n_cols":7,"rows_kept":127,"cut":false,"hidden":false,"merged":[[4,2,4,3],[7,1,7,2],[25,1,25,2],[33,1,33,3],[21,1,21,3]]}
[]
[]
[]
[]
[null,"Treść pytania","                                      Odpowiedź"]
[]
[null,"Proszę wpisać rok urodzenia",1970,{"$f":"IF(C7=\"\",0,1)","v":1},{"$f":"2024-C7","v":54},"Tak"]
[null,"Czy przyjął Pan/przyjeła Pani szczepienia przeciw:",null,null,null,"Nie"]
[null,"Grypie (w tym sezonie)","Nie",{"$f":"IF(C9=\"\",0,1)","v":1},null,"Nie wiem"]
[null,"Covid-19","Nie",{"$f":"IF(C10=\"\",0,1)","v":1}]
[null,"Zakażeniom wirusem syncytialnym układu oddechowego (RSV)","Nie",{"$f":"IF(C11=\"\",0,1)","v":1}]
[null,"Inwazyjnym zakażeniom Streptococcus pneumoniae (Pneumokoki)","Nie",{"$f":"IF(C12=\"\",0,1)","v":1}]
[null,"Inwazyjnym zakażeniom Neisseria meningitidis (Meningokoki)","Nie",1]
[null,"Błonicy, tężcowi, krztuścowi (Tdap) (w ciągu ostatnich 10 lat)","Nie",{"$f":"IF(C14=\"\",0,1)","v":1}]
[null,"Ospie wietrznej","Nie",{"$f":"IF(C15=\"\",0,1)","v":1}]
[null,"Półpaścowi","Nie",{"$f":"IF(C16=\"\",0,1)","v":1}]
[null,"Ludzkiemu wirusowi brodawcza (HPV)","Nie",{"$f":"IF(C17=\"\",0,1)","v":1}]
[null,"Odrze, śwince, różyczce (MMR)","Nie",{"$f":"IF(C18=\"\",0,1)","v":1}]
[null,"Kleszczowemu zapaleniu mózgu (KZM)","Nie",1]
[null,"Wirusowemu zapaleniu wątroby typu A (WZW typu A/HAV)","Nie",{"$f":"IF(C20=\"\",0,1)","v":1}]
[null,"Wirusowemu zapaleniu wątroby typu B (WZW typu B/HBV)","Nie",{"$f":"IF(C21=\"\",0,1)","v":1}]
[null,"Czy przebył Pan/przebyła Pani zakażenie:"]
[null,"Ospą wietrzną","Nie wiem",{"$f":"IF(C23=\"\",0,1)","v":1}]
[null,"Odrą","Nie wiem",{"$f":"IF(C24=\"\",0,1)","v":1}]
[null,"Różyczką","Nie wiem",1]
[null,"Czy aktualnie choruje Pan/Pani lub dotyczy Pana/Pani:"]
[null,"Cukrzyca","Tak",1]
[null,"Choroba układu oddechowego (np. Astma, POChP)","Tak",1]
[null,"Choroba układu krążenia","Tak",1]
[null,"Choroba nerek","Tak",1]
[null,"Choroba wątroby","Tak",1]
[null,"Zaburzenia odporności (wrodzone lub nabyte niedobory odporności)","Tak",1]
[null,"Leczenie immunosupresyjne","Tak",1]
[]
[null,"Czy często podejmuję Pan/Pani aktywność na swieżym powietrzu, szczególnie w lesie?","Tak",1]
[]
[]
[]
[]
[]
[]
[]
[]
[]
[]
[]
[]
[]
[]
[null,"szczepienie przeciw","Czy zalecane","Szczepienie","Wiek","Choroba","Stwierdzenie"]
[null,"Grypie",{"$f":"IF(D51=FALSE,\"Tak\",\"Nie\")","v":"Tak"},{"$f":"OR(C9=\"Tak\")","v":false}]
[null,"Covid-19",{"$f":"IF(D52=FALSE,\"Tak\",\"Nie\")","v":"Tak"},{"$f":"OR(C10=\"Tak\")","v":false}]
[null,"Zakażeniom wirusem syncytialnym układu oddechowego (RSV)",{"$f":"IF(AND(D53=FALSE,E53=TRUE),\"Tak\",\"Nie\")","v":"Nie"},{"$f":"OR(C11=\"Tak\")","v":false},{"$f":"IF(E7<60,FALSE,TRUE)","v":false}]
[null,"Inwazyjnym zakażeniom Streptococcus pneumoniae (Pneumokoki)",{"$f":"IF(AND(D54=FALSE,OR(E54=TRUE,F54=TRUE)),\"Tak\",\"Nie\")","v":"Tak"},{"$f":"OR(C12=\"Tak\")","v":false},{"$f":"IF(E7<65,FALSE,TRUE)","v":false},{"$f":"OR(C27=\"Tak\",C28=\"Tak\",C29=\"Tak\",C30=\"Tak\",C31=\"Tak\",C32=\"Tak\",C33=\"Tak\")","v":true}]
[null,"Inwazyjnym zakażeniom Streptococcus pneumoniae (Pneumokoki)",{"$f":"IF(AND(D55=FALSE,E55=TRUE,C54=\"Nie\"),\"Tak\",\"Nie\")","v":"Nie"},{"$f":"OR(C12=\"Tak\")","v":false},{"$f":"IF(AND(E7<65,E7>49),TRUE,FALSE)","v":true}]
[null,"Inwazyjnym zakażeniom Neisseria meningitidis (Meningokoki)",{"$f":"IF(AND(D56=FALSE,OR(F56=TRUE)),\"Tak\",\"Nie\")","v":"Tak"},{"$f":"OR(C13=\"Tak\")","v":false},null,{"$f":"OR(C30=\"Tak\",C31=\"Tak\",C32=\"Tak\",C33=\"Tak\")","v":true}]
[null,"Błonicy, tężcowi, krztuścowi (Tdap)",{"$f":"IF(D57=FALSE,\"Tak\",\"Nie\")","v":"Tak"},{"$f":"OR(C14=\"Tak\")","v":false}]
[null,"Ospie wietrznej",{"$f":"IF(AND(D58=FALSE,C23=\"Nie\"),\"Tak\",\"Nie\")","v":"Nie"},{"$f":"OR(C15=\"Tak\",C23=\"Tak\")","v":false}]
[null,"Półpaścowi",{"$f":"IF(AND(D59=FALSE,OR(E59=TRUE,G59=TRUE),F59=TRUE),\"Tak\",\"Nie\")","v":"Tak"},{"$f":"OR(C16=\"Tak\")","v":false},{"$f":"IF(E7<50,FALSE,TRUE)","v":true},{"$f":"OR(C23=\"Tak\",C23=\"Nie wiem\")","v":true},{"$f":"OR(C32=\"Tak\",C29=\"Tak\",C28=\"Tak\",C30=\"Tak\",C27=\"Tak\",C31=\"Tak\",C33=\"Tak\")","v":true}]
[null,"Ludzkiemu wirusowi brodawcza (HPV)",{"$f":"IF(AND(D60=FALSE,E60=TRUE),\"Tak\",\"Nie\")","v":"Nie"},false,{"$f":"IF(E7>49,FALSE,TRUE)","v":false}]
[null,"Odrze, śwince, różyczce (MMR)",{"$f":"IF(OR(AND(D61=FALSE,E61=TRUE,F61=FALSE),C18=\"Nie\"),\"Tak\",\"Nie\")","v":"Tak"},false,{"$f":"IF(C7<2003,TRUE,FALSE)","v":true},{"$f":"IF(OR(C24=\"Tak\",C25=\"Tak\"),TRUE,FALSE)","v":false}]
[null,"Kleszczowemu zapaleniu mózgu (KZM)",{"$f":"IF(AND(D62=FALSE,OR(E62=TRUE,F62=TRUE,G62=TRUE)),\"Tak\",\"Nie\")","v":"Tak"},false,null,null,{"$f":"IF(C35=\"Tak\",TRUE,FALSE)","v":true}]
[null,"Wirusowemu zapaleniu wątroby typu A (WZW typu A/HAV)",{"$f":"IF(AND(D63=FALSE,F63=TRUE),\"Tak\",\"Nie\")","v":"Tak"},false,null,{"$f":"OR(C31=\"Tak\")","v":true}]
[null,"Wirusowemu zapaleniu wątroby typu B (WZW typu B)",{"$f":"IF(OR(AND(D64=FALSE,E64=TRUE),C21=\"Nie\"),\"Tak\",\"Nie\")","v":"Tak"},false,{"$f":"IF(C7<1994,TRUE,FALSE)","v":true}]
[null,"WZW typu A i WZW typu B",{"$f":"IF(AND(C63=\"Tak\",C64=\"Tak\"), \"Tak\",\"Nie\")","v":"Tak"}]
[]
[]
[]
[]
[]
[]
[]
[]
[]
[]
[]
[]
[]
[]
[]
[]
[]
[]
[]
[]
[]
[]
[]
[null,"Szczepienie przeciw","Schemat szczepienia","Możliwość refundacji","Więcej informacji na temat szczepienia i choroby"]
[null,{"$f":"IF($C51=\"Tak\",VLOOKUP($B51,$B$114:$F$126,1,FALSE),)","v":"Grypie"},"1 dawka na sezon","Refundowane w 50% dla wszystkich oraz bezpłatne dla:\n- kobiet w ciąży,\n-  osób od 65 roku życia","https://szczepienia.pzh.gov.pl/szczepionki/grypa/"]
[null,"Covid-19","1 lub 2 dawki (zależy od rodzaju szczepionki) + dawki przypominające","Refundowana dla wszystkich","https://szczepienia.pzh.gov.pl/szczepionki/covid-19-2/"]
[null,0,"1 dawka","Brak refundacji dla osób dorosłych","https://szczepienia.pzh.gov.pl/pierwsza-szczepionka-przeciw-rsv/"]
[null,{"$f":"IF($C54=\"Tak\",VLOOKUP($B54,$B$114:$F$126,1,FALSE),)","v":"Inwazyjnym zakażeniom Streptococcus pneumoniae (Pneumokoki)"},"1 dawka szczepionki PCV-13 + 1 dawka szczepionki PPSV-23 (w odstępie ≥8 tyg.) lub 1 dawka szczepionki PCV-20","Refundacja 100% szczepionki PCV13 dla osób od 65 r.ż. z grup ryzyka","https://szczepienia.pzh.gov.pl/szczepionki/pneumokoki/"]
[null,0,"1 dawka ","Istnieje możliwość dofinansowania w ramach programów samorządowych","https://szczepienia.pzh.gov.pl/szczepionki/pneumokoki/"]
[null,"Inwazyjnym zakażeniom Neisseria meningitidis (Meningokoki)","MenB: 2 dawki z odstępem min. 1 mies.\nMenACWY: 1 dawka","Istnieje możliwość dofinansowania w ramach programów samorządowych","https://szczepienia.pzh.gov.pl/szczepionki/meningokoki/"]
[null,"Błonicy, tężcowi, krztuścowi (Tdap)","1 dawka co 10 lat","Brak refundacji dla osób dorosłych","https://szczepienia.pzh.gov.pl/szczepionki/blonica/?strona=4#jakie-rodzaje-szczepionek-przeciw-blonicy-sa-dostepne-w-polsce"]
[null,0,"2 dawki z odstępem min. 6 tyg.","Brak refundacji dla osób dorosłych","https://szczepienia.pzh.gov.pl/szczepionki/ospa-wietrzna/"]
[null,"Półpaścowi","2 dawki z odstępem 2 mies.","Refundacja 50% dla osób od 65 lat z grypy podwyższonego ryzyka","https://szczepienia.pzh.gov.pl/szczepionki/polpasiec/"]
[null,0,"3 dawki (0, 1, 6 mies.)","Refundacja 50% dla osób powyżej 18 r.ż.","https://szczepienia.pzh.gov.pl/szczepionki/hpv/"]
[null,"Odrze, śwince, różyczce (MMR)","1 dawka (druga dawka zgodnie z oficjalnymi zaleceniami)","Brak refundacji dla osób dorosłych","https://szczepienia.pzh.gov.pl/szczepionki/odra/"]
[null,"Kleszczowemu zapaleniu mózgu (KZM)"," 3 dawki + dawki przypominające co 3-5 lat","Istnieje możliwość dofinansowania w ramach programów samorządowych","https://szczepienia.pzh.gov.pl/szczepionki/kleszczowe-zapalenie-mozgu/"]
[null,{"$f":"IF(AND($C63=\"Tak\",C64=\"Nie\"),VLOOKUP($B63,$B$114:$F$126,1,FALSE),)","v":0},"1 dawka + 1 dawka przypominająca po 6-12 mies.","Brak refundacji dla osób dorosłych","https://szczepienia.pzh.gov.pl/szczepionki/wzw-a/"]
[null,{"$f":"IF(AND($C64=\"Tak\",C63=\"Nie\"),VLOOKUP($B64,$B$114:$F$126,1,FALSE),)","v":0},"3 dawki (0, 1, 6 mies.)","Istnieje możliwość dofinansowania w ramach programów samorządowych","https://szczepienia.pzh.gov.pl/szczepionki/wzw-b/"]
[null,{"$f":"IF($C65=\"Tak\",VLOOKUP($B65,$B$114:$F$127,1,FALSE),)","v":"WZW typu A i WZW typu B"},"3 dawki (0, 1, 6 mies.)","Brak refundacji dla osób dorosłych","https://szczepienia.pzh.gov.pl/szczepionki/wzw-a/"]
[]
[]
[]
[]
[]
[]
[]
[null,"Bibliografia"]
[null,"Szczepienie przeciw","Schemat szczepienia","Koszt szczepienia","Możliwość refundacji"]
[null,"Covid-19","ChPL","https://www.gov.pl/web/psse-szczecin/szczepienia-przeciw-covid-19-w-sezonie-20232024"]
[null,"Grypie","ChPL","https://www.mp.pl/pacjent/grypa/wiadomosci/278816,szczepienie-przeciwko-grypie-cena"]
[null,"Inwazyjnym zakażeniom Neisseria meningitidis (Meningokoki)","ChPL","BASiW: Program szczepień ochronnych przeciwko meningokokom typu C wywołujących sepsę realizowany w 2022 roku przez Starostwo Powiatowe w Myślenicach"]
[null,"Inwazyjnym zakażeniom Streptococcus pneumoniae (Pneumokoki)","ChPL/Kalendarz szczepień","BASiW: PROGRAM PROFILAKTYKI ZAKAŻEŃ PNEUMOKOKOWYCH W OPARCIU O SZCZEPIENIA PRZECIWKO PNEUMOKOKOM W WOJEWÓDZTWIE LUBELSKIM W LATACH 2016-2021"]
[null,"Kleszczowemu zapaleniu mózgu (KZM)","ChPL","BASiW: PROGRAM POLITYKI ZDROWOTNEJ W ZAKRESIE SZCZEPIEŃ OCHRONNYCH PRZECIW KLESZCZOWEMU ZAPALENIU MÓZGU DLA MIESZKAŃCÓW POWIATU OLECKIEGO NA LATA 2018 – 2022"]
[null,"Wirusowemu zapaleniu wątroby typu B (WZW typu B)","ChPL","PROGRAM SZCZEPIEŃ PRZECIWKO WZW TYPU B DLA OSÓB CHORYCH PRZEWLEKLE Z WOJEWÓDZTWA ŁÓDZKIEGO"]
[null,"Ospie wietrznej","ChPL","brak refundacji dla dorosłych nie zidentyfikowano programów samorządowych dla dorosłych"]
[null,"Półpaścowi","ChPL","https://www.gov.pl/web/psse-przeworsk/szczepionka-przeciw-polpascowi-objeta-50-refundacja"]
[null,"Zakażeniom wirusem syncytialnym układu oddechowego (RSV)","ChPL","brak refundacji dla dorosłych nie zidentyfikowano programów samorządowych dla dorosłych"]
[null,"Błonicy, tężcowi, krztuścowi (Tdap)","ChPL","brak refundacji dla dorosłych nie zidentyfikowano programów samorządowych dla dorosłych"]
[null,"Odrze, śwince, różyczce (MMR)","ChPL","brak refundacji dla dorosłych nie zidentyfikowano programów samorządowych dla dorosłych"]
[null,"Ludzkiemu wirusowi brodawcza (HPV)","ChPL","Medycyna Praktyczna"]
[null,"Wirusowemu zapaleniu wątroby typu A (WZW typu A/HAV)","ChPL","brak refundacji dla dorosłych nie zidentyfikowano programów samorządowych dla dorosłych"]
[null,"WZW typu A i WZW typu B","ChPL","brak refundacji dla dorosłych nie zidentyfikowano programów samorządowych dla dorosłych"]

{"sheet":"Pracodawca","index":1,"n_rows":73,"n_cols":10,"rows_kept":73,"cut":false,"hidden":false,"merged":[[5,6,5,8],[49,1,49,3],[50,1,50,3],[5,1,5,2],[46,1,46,3],[47,1,47,3],[48,1,48,3],[45,1,45,3],[43,1,43,3],[42,1,42,4],[44,1,44,3]]}
[]
[]
[]
[]
[]
[null,"Dane wejściowe do uzupełnienia",null,null,null,null,{"$f":"\"Dane dotyczące \"&VLOOKUP(C8,B58:C65,2,FALSE)","v":"Dane dotyczące Półpaśca"}]
[null,"Parametr","Wartość",null,null,null,"Parametr","Wartość","Źródło"]
[null,"Wybór jednostki chorobowej","Półpasiec",{"$f":"IF(C8=\"\",0,1)","v":1},null,null,"  Średni koszt szczepionki dla 1 pracownika",{"$f":"VLOOKUP(C$8,B$56:I$65,4,FALSE)","v":1502.12},"Medycyna Praktyczna/gdzie po lek"]
[null,"% dofinansowania szczepień przez pracodawcę",1,{"$f":"IF(C9=\"\",0,1)","v":1},null,null,"  Dodatkowe koszty zaszczepienia pracownika, w tym:",{"$f":"SUM(H10:H11)","v":43.410000000000004}]
[null,"Średnie miesięczne wynagrodzenie pracownika brutto",10000,{"$f":"IF(C10=\"\",0,1)","v":1},null,null,"  Koszt kwalifikacji lekarskiej ",{"$f":"VLOOKUP(C$8,B$56:I$65,8,FALSE)","v":28.410000000000004},"Raport AOTMiT i Rynek Zdrowia"]
[null,null,null,null,null,null,"  Koszt wykonania szczepienia przez pielęgniarkę",{"$f":"VLOOKUP(C$8,B$56:J$65,9,FALSE)","v":15},"Raport AOTMiT i Pielęgniarki Info"]
[null,null,null,null,null,null,"  Skuteczność szczepionki",{"$f":"VLOOKUP(C$8,B$56:I$65,5,FALSE)","v":0.94350000000000001},"Centers for Disease Control and Prevention (CDC)"]
[null,null,null,null,null,null,"  Współczynnik zakażalności choroby",{"$f":"VLOOKUP(C$8,B$56:I$65,7,FALSE)","v":1E-3},"Medycyna Praktyczna/Badania kliniczne/Szczepienia Info"]
[null,null,null,null,null,null,"  Średnia długość zwolnienia lekarskiego [dni]",{"$f":"VLOOKUP(C$8,B$56:I$65,3,FALSE)","v":7.5},"Zakład Ubezpieczeń Społecznych (ZUS)"]
[]
[]
[]
[]
[]
[]
[]
[]
[]
[]
[]
[]
[]
[]
[]
[]
[]
[]
[]
[]
[]
[]
[]
[]
[]
[]
[]
[]
[null,"Szczegółowe wyniki analizy"]
[null,"Parametr",null,null,"Wartość"]
[null,"    Wartość dnia pracy",null,null,{"$f":"C10/(227/12)","v":528.63436123348015}]
[null,"    Prognozowana strata produktywności z powodu choroby (zwolnienia lekarskiego)",null,null,{"$f":"E45*H14","v":3964.757709251101}]
[null,"    Uniknięta utrata produktywności wynikająca z zaszczepienia pracownika (uwzględniając skuteczność szczepionki)",null,null,{"$f":"E46*H12","v":3740.7488986784138}]
[null,"    Prognozowany koszt szczepienia pracownika dla pracodawcy",null,null,{"$f":"SUM(H9+H8)*C9","v":1545.53}]
[null,"    Prognozowany koszt szczepienia dla pracownika",null,null,{"$f":"SUM(H9+H8)*(1-$C9)","v":0}]
[null,"    Oszczędności pracodawcy na pracownika",null,null,{"$f":"E47-E48","v":2195.218898678414}]
[null,"    Dodatkowe oszczędności pracodawcy wynikające z unikniętej zakażalności pozostałych pracowników",null,null,{"$f":"E46*H13*H12","v":3.7407488986784139}]
[]
[]
[]
[]
[]
[null,"Szczepienie przeciw ",null,"Dł. Zwoln.","koszt szczep.","skuteczn szczep.","Skuteczność szczepionki źródło","Współczynnik zakażalności","Wynagrodzenie lekarza","Wynagrodzenie pielęgniarrki"]
[null,"Grypa","Grypy",5.4140318741539559,65.367500000000007,{"$f":"AVERAGE(0.4,0.6)","v":0.5},"Centers for Disease Control and Prevention (40-60%): https://www.cdc.gov/flu/vaccines-work/vaccineeffect.htm",{"$f":"AVERAGE(1.2,3)","v":2.1},{"$f":"170.46*5/60","v":14.205000000000002},{"$f":"90*5/60","v":7.5}]
[null,"Półpasiec","Półpaśca",{"$f":"7.5","v":7.5},1502.12,{"$f":"AVERAGE(0.913,0.974)","v":0.94350000000000001},"Centers for Disease Control and Prevention (91,3%-97,4%): (https://www.cdc.gov/vaccines/vpd/shingles/hcp/shingrix/about-vaccine.html)",{"$f":"0.001","v":1E-3},{"$f":"170.46*5/60*2","v":28.410000000000004},{"$f":"90*5/60*2","v":15}]
[null,"Półpasiec z neuralgią popółpaścową","Półpaśca z neuralgią popółpaścową",{"$f":"11.2+7.5","v":18.7},1502.12,{"$f":"AVERAGE(0.913,0.974)","v":0.94350000000000001},"Centers for Disease Control and Prevention (91,3%-97,4%): (https://www.cdc.gov/vaccines/vpd/shingles/hcp/shingrix/about-vaccine.html)",{"$f":"0.001","v":1E-3},{"$f":"170.46*5/60*2","v":28.410000000000004},{"$f":"90*5/60*2","v":15}]
[null,"Błonica, Tężec, Krztusiec","Błonicy, Tężcowi, Krztuścowi (Tdap)",7.3522727272727275,{"$f":"AVERAGE(130,120)","v":125},{"$f":"AVERAGE(97%,100%,70%)","v":0.89},"CDC (97%; 100%, 70%): Diphtheria, Tetanus, and Whooping Cough Vaccination: https://www.cdc.gov/vaccines/vpd/dtap-tdap-td/public/index.html",15,{"$f":"170.46*5/60","v":14.205000000000002},{"$f":"90*5/60","v":7.5}]
[null,"WZW typu B","WZW typu B",6.9491312539250574,{"$f":"AVERAGE(285,3*61)","v":234},0.9,"CDC: ACIP Evidence to Recommendations for a Universal Hepatitis B (HepB) Vaccination Strategy in Adults (90%): https://www.cdc.gov/vaccines/acip/recs/grade/hepb-adults-etr.html",1.53,{"$f":"170.46*5/60*3","v":42.615000000000009},{"$f":"90*5/60*3","v":22.5}]
[null,"WZW typu A","WZW typu A",18.595419847328245,{"$f":"AVERAGE(2*230,2*195)","v":425},1,"Centers for Disease Control and Prevention (100%): https://www.cdc.gov/vaccines/vpd/hepa/hcp/index.html",1.53,{"$f":"170.46*5/60*2","v":28.410000000000004},{"$f":"90*5/60*2","v":15}]
[null,"WZW typu A i WZW typu B","WZW typu A i WZW typu B",7.2599837000814995,{"$f":"3*270","v":810},{"$f":"AVERAGE(F62:F63)","v":0.95},"Wartość Średnia dla WZW typu A i WZW typu B",1.53,{"$f":"170.46*5/60*3","v":42.615000000000009},{"$f":"90*5/60*3","v":22.5}]
[null,"RSV","RSV",5.270665322580645,1099,0.8,"Centers for Disease Control and Prevention (80%): https://www.cdc.gov/vaccines/vpd/rsv/hcp/older-adults-faqs.html",3,{"$f":"170.46*5/60","v":14.205000000000002},{"$f":"90*5/60","v":7.5}]
[]
[null,null,null,"https://psz.zus.pl/kategorie/absencja-chorobowa/absencja-chorobowa-z-tytulu-choroby-wlasnej-osob-ubezpieczonych-w-zus","Medycyna Praktyczna / gdzie po lek",null,null,"Medycyna Praktyczna/ Badania kliniczne","Raport AOTMiT \"Analiza kosztów szczepienia\nprzeciwko grypie pracowników\nmedycznych oraz innych osób\nuprawnionych\""]
[null,null,null,null,null,null,null,"Grypa: https://pubmed.ncbi.nlm.nih.gov/19545404/","Wycena pracy lekarza POZ: https://www.rynekzdrowia.pl/Finanse-i-zarzadzanie/Na-SOR-184-zl-za-godzine-w-AOS-srednio-248-zl-Lekarze-pokazali-ile-zarabiaja,255620,1.html"]
[null,null,null,null,null,null,null,"Półpasiec: https://www.medonet.pl/zdrowie/pytania-do-lekarzy,czy-polpasiec-jest-zarazliwy-,porada,66235654.html","Wycena pracy pielęgniarki: https://www.pielegniarki.info.pl/aktualnosci/pielegniarki-pracujace-na-kontraktach-wysokosc-stawek-godzinowych#google_vignette"]
[null,null,null,null,null,null,null,"WZW typu B: https://pubmed.ncbi.nlm.nih.gov/21040731/"]
[null,null,null,null,null,null,null,"RSV: https://www.mp.pl/pacjent/choroby-zakazne/choroby/zakazenia-wirusowe/321332,zakazenia-rsv-objawy-leczenie-powiklania"]
[null,null,null,null,null,null,null,"Krztusiec: https://szczepienia.pzh.gov.pl/szczepionki/krztusiec/"]
[null,null,null,null,null,null,null,"WZW typu A: nie odnaleziono danych o zakażalności, ze względu na zbliżoną drogę zakażenia zastosowano współczynnik zakażalności dla WZW typu B"]